Workbook

Sheet ADA DPAC MAY 2024 CAA
A1: DEPARTMENT OF TRANSPORTATION - CALTRANS
A2: DBE Commitment at Award (CAA) on Federally Funded Architectural & Engineering Contracts - October 1, 2023 - May 31, 2024
A4: Total Award Amount Year-to-Date (YTD) | C4: Total DBE Commitment Amount YTD | F4: Total Prime Contracts Awarded YTD
A5: 396121192 | C5: =SUM(C7:C18) -> 85464172.95 | F5: =SUM(C141:C148,I141:I148,F141:F148) -> 30
A6: Groups | C6: Commitment Dollars YTD | D6: Firms YTD | E6: Contracts YTD | F6: % of Contracts | G6: % of DBE $ | H6: % of Total $
A7: Hispanic American Male | C7: =SUMIF(D26:D48,"m", C26:C48) -> 21857445.82 | D7: =COUNTIF(D26:D48,"M") -> 18 | E7: =SUMIF(D26:D48,"M",E26:E48) -> 29 | F7: =E7/E20 -> 0.2071428571 | G7: =C7/C5 -> 0.255749808 | H7: =C7/A5 -> 0.05517868335
A8: Hispanic American Female | C8: =SUMIF(D26:D48,"F", C26:C48) -> 2090504.71 | D8: =COUNTIF(D26:D48,"F") -> 4 | E8: =SUMIF(D26:D48,"F",E26:E48) -> 6 | F8: =E8/E20 -> 0.04285714286 | G8: =C8/C5 -> 0.02446059721 | H8: =C8/A5 -> 0.005277437189
A9: African American Male | C9: =SUMIF(D56:D61,"m", C56:C61) -> 1472895.11 | D9: =COUNTIF(D56:D61,"M") -> 4 | E9: =SUMIF(D56:D61,"M",E56:E61) -> 4 | F9: =E9/E20 -> 0.02857142857 | G9: =C9/C5 -> 0.01723406498 | H9: =C9/A5 -> 0.003718294148
A10: African American Female | C10: =SUMIF(D56:D61,"F", C56:C61) -> 80000 | D10: =COUNTIF(D56:D61,"F") -> 1 | E10: =SUMIF(D56:D61,"F",E56:E61) -> 1 | F10: =E10/E20 -> 0.007142857143 | G10: =C10/C5 -> 0.0009360647537 | H10: =C10/A5 -> 0.0002019583946
A11: Asian Pacific Male | C11: =SUMIF(D76:D104,"m", C76:C104) -> 22140589.82 | D11: =COUNTIF(D76:D104,"M") -> 21 | E11: =SUMIF(D76:D104,"M",E76:E104) -> 37 | F11: =E11/E20 -> 0.2642857143 | G11: =C11/C5 -> 0.2590628219 | H11: =C11/A5 -> 0.05589347469
A12: Asian Pacific Female | C12: =SUMIF(D76:D104,"F", C76:C104) -> 8655545.88 | D12: =COUNTIF(D76:D104,"F") -> 7 | E12: =SUMIF(D76:D104,"F",E76:E104) -> 11 | F12: =E12/E20 -> 0.07857142857 | G12: =C12/C5 -> 0.1012768928 | H12: =C12/A5 -> 0.02185075188
A13: Subcontinent Asian Male | C13: =SUMIF(D64:D73,"m", C64:C73) -> 13620398.65 | D13: =COUNTIF(D64:D73,"M") -> 8 | E13: =SUMIF(D64:D73,"M",E64:E73) -> 15 | F13: =E13/E20 -> 0.1071428571 | G13: =C13/C5 -> 0.1593696888 | H13: =C13/A5 -> 0.03438442306
A14: Subcontinent Asian Female | C14: =SUMIF(D64:D73,"F", C64:C73) -> 585000 | D14: =COUNTIF(D64:D73,"F") -> 1 | E14: =SUMIF(D64:D73,"F",E64:E73) -> 1 | F14: =E14/E20 -> 0.007142857143 | G14: =C14/C5 -> 0.006844973511 | H14: =C14/A5 -> 0.00147682076
A15: Native American Male | C15: =SUMIF(D51:D53,"m", C51:C53) -> 240000 | D15: =COUNTIF(D51:D52,"M") -> 1 | E15: =SUMIF(D51:D52,"M",E51:E52) -> 1 | F15: =E15/E20 -> 0.007142857143 | G15: =C15/C5 -> 0.002808194261 | H15: =C15/A5 -> 0.0006058751838
A16: Native American Female | C16: =SUMIF(D51:D53,"F", C51:C53) -> 180000.01 | D16: =COUNTIF(D51:D52,"F") -> 1 | E16: =SUMIF(D51:D52,"F",E51:E52) -> 2 | F16: =E16/E20 -> 0.01428571429 | G16: =C16/C5 -> 0.002106145813 | H16: =C16/A5 -> 0.0004544064131
A17: Non Minority Women | C17: =SUMIF(D111:D136,"F", C111:C136) -> 14541792.95 | D17: =COUNTIF(D111:D136,"F") -> 24 | E17: =SUMIF(D111:D136,"F",E111:E136) -> 33 | F17: =E17/E20 -> 0.2357142857 | G17: =C17/C5 -> 0.1701507479 | H17: =C17/A5 -> 0.03671046448
A18: Non Minority Men | C18: =SUMIF(D107:D108,"M", C107:C108) -> 0 | D18: =COUNTIF(D107:D108,"M") -> 0 | E18: =SUMIF(D107:D108,"M",E107:E108) -> 0 | F18: =E18/E20 -> 0 | G18: =C18/C5 -> 0 | H18: =C18/A5 -> 0
A20: Total | C20: =SUM(C7:C18) -> 85464172.95 | D20: =SUM(D7:D19) -> 90 | E20: =SUM(E7:E19) -> 140
A21: Total Prime Contracts Awarded | C21: =SUM(C141:C148,F141:F148,I141:I148) -> 30
A22: Red Italic = DBE firm as Prime
A23: BOLD = women
A25: Hispanic American | C25: Dollars | D25: M/F | E25: Contract | F25: Contract # | G25: Prime | H25: Prime Name | I25: Districts
A26: ACT CONSULTING ENGINEERS | C26: 1350000 | D26: M | E26: 1 | F26: =FETCHCOMMENT(E26) -> 08A3639 | G26: 1 | H26: =FETCHCOMMENT(G26) -> TranSystems Corporation | I26: 8
A27: BARGAS ENVIRONMENTAL | C27: 300003.76 | D27: F | E27: 1 | F27: =FETCHCOMMENT(E27) -> 03A3681 | G27: 1 | H27: =FETCHCOMMENT(G27) -> ICF Jones & Stokes, Inc. | I27: 3
A28: CABRINHA HEARN & ASSOCIATES | C28: 110000 | D28: M | E28: 1 | F28: =FETCHCOMMENT(E28) -> 07A5738 | G28: 1 | H28: =FETCHCOMMENT(G28) -> STANTEC CONSULTING SERVICES INC | I28: 7
A29: D'LEON CONSULTING | C29: 350000 | D29: M | E29: 1 | F29: =FETCHCOMMENT(E29) -> 07A5766 | G29: 1 | H29: =FETCHCOMMENT(G29) -> Michael Baker International, Inc. | I29: 7
A30: DEAN RYAN CONSULTANTS & DESIGNERS, INC. | C30: 1495500 | D30: F | E30: 2 | F30: =FETCHCOMMENT(E30) -> 07A5768 59A1270 | G30: 2 | H30: =FETCHCOMMENT(G30) -> DEAN RYAN CONSULTANTS & DESIGNERS, INC. FUGRO | I30: 7,59
A31: EARTHVIEW SCIENCE | C31: 75000.94 | D31: F | E31: 1 | F31: =FETCHCOMMENT(E31) -> 03A3681 | G31: 1 | H31: =FETCHCOMMENT(G31) -> ICF Jones & Stokes, Inc. | I31: 3
A32: FILIPPIN ENGINEERING INC | C32: 585000 | D32: M | E32: 1 | F32: =FETCHCOMMENT(E32) -> 07A5729 | G32: 1 | H32: =FETCHCOMMENT(G32) -> NV5 INC | I32: 7
A33: FOUNTAINHEAD CONSULTING CORP | C33: 3297267.1 | D33: M | E33: 2 | F33: =FETCHCOMMENT(E33) -> 11A3661 0612971 | G33: 2 | H33: =FETCHCOMMENT(G33) -> Kleinfelder Construction Services, Inc. MS ENGINEERS | I33: 6,11
A34: FULL TRAFFIC SAFETY | C34: 120000 | D34: M | E34: 1 | F34: =FETCHCOMMENT(E34) -> 59A1270 | G34: 1 | H34: =FETCHCOMMENT(G34) -> FUGRO | I34: 59
A35: JM DIAZ, INC. | C35: 350000 | D35: M | E35: 1 | F35: =FETCHCOMMENT(E35) -> 07A5766 | G35: 1 | H35: =FETCHCOMMENT(G35) -> Michael Baker International, Inc. | I35: 7
A36: KINGFISHER BIO, INC. | C36: 75000.94 | D36: M | E36: 1 | F36: =FETCHCOMMENT(E36) -> 03A3681 | G36: 1 | H36: =FETCHCOMMENT(G36) -> ICF Jones & Stokes, Inc. | I36: 3
A37: LA SALLE SOLUTIONS | C37: 1800164.6 | D37: M | E37: 2 | F37: =FETCHCOMMENT(E37) -> 11A3661 08A3604 | G37: 2 | H37: =FETCHCOMMENT(G37) -> Kleinfelder Construction Services, Inc. Bureau Veritas North America, Inc. | I37: 8,11
A38: MA ENGINEERING | C38: 870000 | D38: M | E38: 2 | F38: =FETCHCOMMENT(E38) -> 07A5766 53A0282 | G38: 2 | H38: =FETCHCOMMENT(G38) -> Michael Baker International, Inc. VALUE MANAGEMENT STRATEGIES INC | I38: 7,53
A39: RIVER FOCUS | C39: 100000.01 | D39: M | E39: 1 | F39: =FETCHCOMMENT(E39) -> 04A6813 | G39: 1 | H39: =FETCHCOMMENT(G39) -> HDR Engineering, Inc. | I39: 4
A40: SAMA CONSTRUCTION | C40: 1667895.1 | D40: M | E40: 3 | F40: =FETCHCOMMENT(E40) -> 59A1258 08A3604 06A2975 | G40: 2 | H40: =FETCHCOMMENT(G40) -> Bureau Veritas North America, Inc. NV5 INC | I40: 6,8,59
A41: SIX RIVERS GEOSCIENCES | C41: 220000.01 | D41: F | E41: 2 | F41: =FETCHCOMMENT(E41) -> 04A6813 59A1270 | G41: 2 | H41: =FETCHCOMMENT(G41) -> HDR Engineering, Inc. FUGRO | I41: 4,59
A42: SYRUSA ENGINEERING INC | C42: 4112856.97 | D42: M | E42: 4 | F42: =FETCHCOMMENT(E42) -> 59A1258 09A0964 06A2975 07A5729 | G42: 2 | H42: =FETCHCOMMENT(G42) -> Bureau Veritas North America, Inc. NV5 INC | I42: 6,7,9,59
A43: TRIDENT CPM CONSULTING | C43: 100000 | D43: M | E43: 1 | F43: =FETCHCOMMENT(E43) -> 07A5677 | G43: 1 | H43: =FETCHCOMMENT(G43) -> ARCADIS INC | I43: 7
A44: UNICO ENGINEERING CONSULTING | C44: 2820679.95 | D44: M | E44: 3 | F44: =FETCHCOMMENT(E44) -> 09A0964 06A2975 09A0983 | G44: 1 | H44: =FETCHCOMMENT(G44) -> NV5 INC | I44: 6,9
A45: VALLE & ASSOCIATES CIVIL | C45: 739296.3 | D45: M | E45: 1 | F45: =FETCHCOMMENT(E45) -> 06A2971 | G45: 1 | H45: =FETCHCOMMENT(G45) -> MS ENGINEERING INC | I45: 6
A46: VSCE INC | C46: 2239284.85 | D46: M | E46: 2 | F46: =FETCHCOMMENT(E46) -> 09A0964 06A2975 | G46: 1 | H46: =FETCHCOMMENT(G46) -> NV5 INC | I46: 6,9
A47: VST ENGINEERING, INC. | C47: 1170000 | D47: M | E47: 1 | F47: =FETCHCOMMENT(E47) -> 04A6909 | G47: 1 | H47: =FETCHCOMMENT(G47) -> WSP USA, Inc. | I47: 4
F48: =FETCHCOMMENT(E48) ->  | H48: =FETCHCOMMENT(G48) -> 
A50: Native American | C50: Dollars | D50: M/F | E50: Contract | F50: Contract # | G50: Prime | H50: Prime Name | I50: Districts
A51: GERONIMO ENGINEERING | C51: ='[1]DPAC A&E Worksheet'!W17 -> 180000.01 | D51: F | E51: 2 | F51: =FETCHCOMMENT(E51) -> 04A6813 04A6823 | G51: 2 | H51: =FETCHCOMMENT(G51) -> HDR Engineering, Inc. BROWN AND CALDWELL | I51: 4
A52: GREGG DRILLING LLC | C52: ='[1]DPAC A&E Worksheet'!W25 -> 240000 | D52: M | E52: 1 | F52: =FETCHCOMMENT(E52) -> 59A1270 | G52: 1 | H52: =FETCHCOMMENT(G52) -> FUGRO | I52: 59
F53: =FETCHCOMMENT(E53) ->  | H53: =FETCHCOMMENT(G53) -> 
A55: African American | C55: Dollars | D55: M/F | E55: Contract | F55: Contract # | G55: Prime | H55: Prime Name | I55: Districts
A56: ACTIVEWAYZ ENGINEERING, INC | C56: 100000.01 | D56: M | E56: 1 | F56: =FETCHCOMMENT(E56) -> 04A6813 | G56: 1 | H56: =FETCHCOMMENT(G56) -> HDR Engineering, Inc. | I56: 4
A57: ACUMEN BUILDING | C57: 267895.1 | D57: M | E57: 1 | F57: =FETCHCOMMENT(E57) -> 06A2975 | G57: 1 | H57: =FETCHCOMMENT(G57) -> NV5 INC | I57: 6
A58: LUSTER NATIONAL | C58: 585000 | D58: M | E58: 1 | F58: =FETCHCOMMENT(E58) -> 04A6909 | G58: 1 | H58: =FETCHCOMMENT(G58) -> WSP USA, Inc. | I58: 4
A59: O2EPCM INC | C59: 80000 | D59: F | E59: 1 | F59: =FETCHCOMMENT(E59) -> 07A5677 | G59: 1 | H59: =FETCHCOMMENT(G59) -> ARCADIS INC | I59: 7
A60: VIRTEK COMPANY | C60: 520000 | D60: M | E60: 1 | F60: =FETCHCOMMENT(E60) -> 53A0282 | G60: 1 | H60: =FETCHCOMMENT(G60) -> VALUE MANAGEMENT STRATEDIES INC | I60: 53
F61: =FETCHCOMMENT(E61) ->  | H61: =FETCHCOMMENT(G61) -> 
A63: Sub Cont Asian | C63: Dollars | D63: M/F | E63: Contract | F63: Contract # | G63: Prime | H63: Prime Name | I63: Districts
A64: AMC INC | C64: 4020000 | D64: M | E64: 3 | F64: =FETCHCOMMENT(E64) -> 59A1258 07A5677 08A3604 | G64: 2 | H64: =FETCHCOMMENT(G64) -> ARCADIS INC Bureau Veritas North America, Inc. | I64: 7,8,59
A65: EARTH MECHANICS | C65: 875000 | D65: M | E65: 3 | F65: =FETCHCOMMENT(E65) -> 08A3639 07A5782 59A1270 | G65: 2 | H65: =FETCHCOMMENT(G65) -> TranSystems Corporation FUGRO | I65: 7,8,59
A66: FULCRUM CONSULTANTS INC | C66: 739296.3 | D66: M | E66: 1 | F66: =FETCHCOMMENT(E66) -> 06A2971 | G66: 1 | H66: =FETCHCOMMENT(G66) -> MS ENGINEERS INC | I66: 6
A67: GRIT FORCE INC | C67: 1428233.3 | D67: M | E67: 1 | F67: =FETCHCOMMENT(E67) -> 06A2969 | G67: 1 | H67: =FETCHCOMMENT(G67) -> ATLAS TECHNICAL CONSULTANTS INC | I67: 6
A68: PBS ENGINEERS, INC. | C68: 1590000 | D68: M | E68: 1 | F68: =FETCHCOMMENT(E68) -> 59A1268 | G68: 1 | H68: =FETCHCOMMENT(G68) -> Gannett Fleming, Inc. | I68: 59
A69: REDDY ENGINEERING | C69: 1070164.6 | D69: M | E69: 2 | F69: =FETCHCOMMENT(E69) -> 11A3661 11A3767 | G69: 2 | H69: =FETCHCOMMENT(G69) -> Kleinfelder Construction Services, Inc. Kimley-Horn and Associates, Inc. | I69: 11
A70: S2 ENGINEERING | C70: 3312704.45 | D70: M | E70: 3 | F70: =FETCHCOMMENT(E70) -> 09A0964 06A2975 07A5729 | G70: 1 | H70: =FETCHCOMMENT(G70) -> NV5 INC | I70: 6,7,9
A71: SPS ENGINEERS | C71: 585000 | D71: M | E71: 1 | F71: =FETCHCOMMENT(E71) -> 04A6909 | G71: 1 | H71: =FETCHCOMMENT(G71) -> WSP USA, Inc. | I71: 4
A72: SKYLINE CONSULTANTS | C72: 585000 | D72: F | E72: 1 | F72: =FETCHCOMMENT(E72) -> 07A5729 | G72: 1 | H72: =FETCHCOMMENT(G72) -> NV5 INC | I72: 7
F73: =FETCHCOMMENT(E73) ->  | H73: =FETCHCOMMENT(G73) -> 
A75: Asian Pacific | C75: Dollars | D75: M/F | E75: Contract | F75: Contract # | G75: Prime | H75: Prime Name | I75: Districts
A76: ADVANTEC CONSULTING ENGINEERS | C76: 2611314.2 | D76: M | E76: 4 | F76: =FETCHCOMMENT(E76) -> 08A3639 09A0976 07A5782 04A6800 | G76: 2 | H76: =FETCHCOMMENT(G76) -> TranSystems Corporation Parsons | I76: 4,7,8,9
A77: AEW ENGINEERING INC | C77: 160000 | D77: M | E77: 1 | F77: =FETCHCOMMENT(E77) -> 04A6823 | G77: 1 | H77: =FETCHCOMMENT(G77) -> BROWN & CALDWELL | I77: 4
A78: ALIQUOT ASSOCIATES | C78: 2150000.05 | D78: M | E78: 2 | F78: =FETCHCOMMENT(E78) -> 04A6813 04A6890 | G78: 2 | H78: =FETCHCOMMENT(G78) -> HDR Engineering, Inc. CHAUDHARY & ASSOCIATES INC | I78: 4
A79: AMC CONSULTING ENGINEERS | C79: 267895.1 | D79: M | E79: 1 | F79: =FETCHCOMMENT(E79) -> 06A2975 | G79: 1 | H79: =FETCHCOMMENT(G79) -> NV5 INC | I79: 6
A80: AP ENGINEERING | C80: 240000 | D80: M | E80: 1 | F80: =FETCHCOMMENT(E80) -> 59A1270 | G80: 1 | H80: =FETCHCOMMENT(G80) -> FUGRO | I80: 59
A81: AXIOM ENGINEERING | C81: 574116.65 | D81: M | E81: 1 | F81: =FETCHCOMMENT(E81) -> 06A2969 | G81: 1 | H81: =FETCHCOMMENT(G81) -> ATLAS TECHNICAL CONSULTANTS INC | I81: 6
A82: C2PM | C82: 425102.98 | D82: F | E82: 1 | F82: =FETCHCOMMENT(E82) -> 11A3661 | G82: 1 | H82: =FETCHCOMMENT(G82) -> Kleinfelder Construction Services, Inc. | I82: 11
A83: EGP CONSULTING, INC. | C83: 140000 | D83: F | E83: 1 | F83: =FETCHCOMMENT(E83) -> 07A5782 | G83: 1 | H83: =FETCHCOMMENT(G83) -> TranSystems Corporation | I83: 7
A84: ELITE TRANSPORTATION GROUP INC | C84: 912000 | D84: M | E84: 2 | F84: =FETCHCOMMENT(E84) -> 11A3767 04A6800 | G84: 2 | H84: =FETCHCOMMENT(G84) -> KIMLEY-HORN AND ASSOCIATES Parsons Transportation Group, Inc. | I84: 4,11
A85: FPL AND ASSOCIATES INC | C85: 350000 | D85: M | E85: 1 | F85: =FETCHCOMMENT(E85) -> 07A5766 | G85: 1 | H85: =FETCHCOMMENT(G85) -> Michael Baker International, Inc. | I85: 7
A86: I D C CONSULTING ENGINEERS | C86: 1560000 | D86: F | E86: 1 | F86: =FETCHCOMMENT(E86) -> 59A1285 | G86: 1 | H86: =FETCHCOMMENT(G86) -> HNTB CORPORATION | I86: 59
A87: INNOVEX ENVIRONMENTAL | C87: 320000 | D87: M | E87: 1 | F87: =FETCHCOMMENT(E87) -> 04A6823 | G87: 1 | H87: =FETCHCOMMENT(G87) -> BROWN & CALDWELL | I87: 4
A88: KCM ENGINEERING INC | C88: 739296.3 | D88: M | E88: 1 | F88: =FETCHCOMMENT(E88) -> 06A2971 | G88: 1 | H88: =FETCHCOMMENT(G88) -> MS ENGINEERS INC | I88: 6
A89: LIN CONSULTING | C89: 1212000 | D89: M | E89: 4 | F89: =FETCHCOMMENT(E89) -> 08A3639 11A3767 07A5766 07A5782 | G89: 3 | H89: =FETCHCOMMENT(G89) -> TranSystems Corporation Kimley-Horn and Associates, Inc. Michael Baker International, Inc. | I89: 7,8,11
A90: LRS PROGRAM DELIVERY INC | C90: 728000 | D90: F | E90: 1 | F90: =FETCHCOMMENT(E90) -> 53A0282 | G90: 1 | H90: =FETCHCOMMENT(G90) -> VALUE MANAGEMENT STRATEDIES INC | I90: 53
A91: MGE ENGINEERING | C91: 2730000 | D91: M | E91: 1 | F91: =FETCHCOMMENT(E91) -> 59A1285 | G91: 1 | H91: =FETCHCOMMENT(G91) -> HNTB CORPORATION | I91: 59
A92: MOZAMO ENGINEERING INC | C92: 4165442.9 | D92: F | E92: 5 | F92: =FETCHCOMMENT(E92) -> 06A2969 09A0964 06A2971 06A2975 09A0983 | G92: 3 | H92: =FETCHCOMMENT(G92) -> ATLAS TECHNICAL CONSULTANTS INC NV5 INC MS ENGINEERING INC | I92: 6,9
A93: PACRIM ENGINEERING | C93: 1325000 | D93: F | E93: 1 | F93: =FETCHCOMMENT(E93) -> 59A1268 | G93: 1 | H93: =FETCHCOMMENT(G93) -> Gannett Fleming, Inc. | I93: 59
A94: PARIKH CONSULTANTS | C94: 97500 | D94: M | E94: 1 | F94: =FETCHCOMMENT(E94) -> 04A6909 | G94: 1 | H94: =FETCHCOMMENT(G94) -> WSP USA, Inc. | I94: 4
A95: PARK ENGINEERING INC | C95: 739296.3 | D95: M | E95: 1 | F95: =FETCHCOMMENT(E95) -> 06A2971 | G95: 1 | H95: =FETCHCOMMENT(G95) -> MS ENGINEERS INC | I95: 6
A96: RAIL SURVEYORS AND ENGINEERS, INC. | C96: 500000.05 | D96: M | E96: 1 | F96: =FETCHCOMMENT(E96) -> 04A6813 | G96: 1 | H96: =FETCHCOMMENT(G96) -> HDR Engineering, Inc. | I96: 4
A97: SAN DIEGUITO ENGINEERING INC | C97: 312000 | D97: F | E97: 1 | F97: =FETCHCOMMENT(E97) -> 11A3767 | G97: 1 | H97: =FETCHCOMMENT(G97) -> KIMLEY-HORN AND ASSOCIATES | I97: 11
A98: SILICON TRANSPORTATION | C98: 78000 | D98: M | E98: 1 | F98: =FETCHCOMMENT(E98) -> 11A3767 | G98: 1 | H98: =FETCHCOMMENT(G98) -> KIMLEY-HORN AND ASSOCIATES | I98: 11
A99: SYSTEM METRICS GROUP | C99: 2051314.2 | D99: M | E99: 2 | F99: =FETCHCOMMENT(E99) -> 09A0976 04A6800 | G99: 1 | H99: =FETCHCOMMENT(G99) -> PARSONS | I99: 4,9
A100: TATSUMI AND PARTNERS | C100: 890000 | D100: M | E100: 2 | F100: =FETCHCOMMENT(E100) -> 08A3639 07A5782 | G100: 1 | H100: =FETCHCOMMENT(G100) -> TranSystems Corporation | I100: 7,8
A101: TRANSMAT | C101: 2872856.97 | D101: M | E101: 6 | F101: =FETCHCOMMENT(E101) -> 08A3615 09A0964 06A2975 09A0976 06A2975 07A5729 | G101: 3 | H101: =FETCHCOMMENT(G101) -> ATLAS TECHNICAL CONSULTANTS INC NV5 INC PARSONS | I101: 6,7,8,9
A102: TRICERTUS LLC | C102: 80000 | D102: M | E102: 1 | F102: =FETCHCOMMENT(E102) -> 07A5677 | G102: 1 | H102: =FETCHCOMMENT(G102) -> ARCADIS INC | I102: 7
A103: YEI ENGINEERS | C103: 2565000 | D103: M | E103: 2 | F103: =FETCHCOMMENT(E103) -> 04A6909 59A1268 | G103: 2 | H103: =FETCHCOMMENT(G103) -> WSP USA, Inc. Gannett Fleming, Inc. | I103: 4,59
F104: =FETCHCOMMENT(E104) ->  | H104: =FETCHCOMMENT(G104) -> 
A106: Other | C106: Dollars | D106: M/F | E106: Contract | F106: Contract # | G106: Prime | H106: Prime Name | I106: Districts
F107: =FETCHCOMMENT(E107) ->  | H107: =FETCHCOMMENT(G107) -> 
F108: =FETCHCOMMENT(E108) ->  | H108: =FETCHCOMMENT(G108) -> 
A110: Non Minority Women | C110: Dollars | D110: M/F | E110: Contract | F110: Contract # | G110: Prime | H110: Prime Name | I110: Districts
A111: ALBAT | C111: 1764578.48 | D111: F | E111: 2 | F111: =FETCHCOMMENT(E111) -> 11A3661 06A2975 | G111: 2 | H111: =FETCHCOMMENT(G111) -> Kleinfelder Construction Services, Inc. NV5 INC | I111: 6,11
A112: AREA WEST ENVIRONMENTAL | C112: 450005.64 | D112: F | E112: 1 | F112: =FETCHCOMMENT(E112) -> 03A3681 | G112: 1 | H112: =FETCHCOMMENT(G112) -> ICF Jones & Stokes, Inc. | I112: 3
A113: AVILA TRAFFIC SAFETY | C113: 120000 | D113: F | E113: 1 | F113: =FETCHCOMMENT(E113) -> 59A1270 | G113: 1 | H113: =FETCHCOMMENT(G113) -> FUGRO | I113: 59
A114: BENNETT ENGINEERING SERVICES, INC. | C114: 1921000.04 | D114: F | E114: 3 | F114: =FETCHCOMMENT(E114) -> 04A6813 11A3767 04A6909 | G114: 3 | H114: =FETCHCOMMENT(G114) -> HDR Engineering, Inc. Kimley-Horn and Associates, Inc. WSP USA, Inc. | I114: 4,11
A115: BLUE LAKE CIVIL | C115: 546000 | D115: F | E115: 1 | F115: =FETCHCOMMENT(E115) -> 11A3767 | G115: 1 | H115: =FETCHCOMMENT(G115) -> KIMLEY-HORN AND ASSOCIATES | I115: 11
A116: COGSTONE RESOURCE | C116: 75000.94 | D116: F | E116: 1 | F116: =FETCHCOMMENT(E116) -> 03A3681 | G116: 1 | H116: =FETCHCOMMENT(G116) -> ICF Jones & Stokes, Inc. | I116: 3
A117: CONVEY, INC. | C117: 97500 | D117: F | E117: 1 | F117: =FETCHCOMMENT(E117) -> 04A6909 | G117: 1 | H117: =FETCHCOMMENT(G117) -> WSP USA, Inc. | I117: 4
A118: CPM PARTNERS | C118: 425102.98 | D118: F | E118: 1 | F118: =FETCHCOMMENT(E118) -> 11A3661 | G118: 1 | H118: =FETCHCOMMENT(G118) -> Kleinfelder Construction Services, Inc. | I118: 11
A119: EKOLOJIK | C119: 85020.58 | D119: F | E119: 1 | F119: =FETCHCOMMENT(E119) -> 11A3661 | G119: 1 | H119: =FETCHCOMMENT(G119) -> Kleinfelder Construction Services, Inc. | I119: 11
A120: GALVIN PRESERVATION ASSOCIATES | C120: 150001.88 | D120: F | E120: 1 | F120: =FETCHCOMMENT(E120) -> 03A3681 | G120: 1 | H120: =FETCHCOMMENT(G120) -> ICF Jones & Stokes, Inc | I120: 3
A121: GATEWAY PACIFIC | C121: 886082.3 | D121: F | E121: 2 | F121: =FETCHCOMMENT(E121) -> 11A3767 11A3661 | G121: 2 | H121: =FETCHCOMMENT(G121) -> KIMLEY-HORN AND ASSOCIATES Kleinfelder Construction Services, Inc. | I121: 11
A122: GSM LANDSCAPE ARCHITECTS INC | C122: 520000 | D122: F | E122: 1 | F122: =FETCHCOMMENT(E122) -> 53A0282 | G122: 1 | H122: =FETCHCOMMENT(G122) -> VALUE MANAGEMENT STRATEDIES INC | I122: 53
A123: JSE4 | C123: 493000 | D123: F | E123: 3 | F123: =FETCHCOMMENT(E123) -> 11A3767 08A3639 07A5782 | G123: 2 | H123: =FETCHCOMMENT(G123) -> KIMLEY-HORN AND ASSOCIATES TranSystems Corporation | I123: 3,8,11
A124: LEWIS JONES | C124: 624000 | D124: F | E124: 1 | F124: =FETCHCOMMENT(E124) -> 11A3767 | G124: 1 | H124: =FETCHCOMMENT(G124) -> KIMLEY-HORN AND ASSOCIATES | I124: 11
A125: KELLY MCNUTT CONSULTING, LLC | C125: 1100000 | D125: F | E125: 1 | F125: =FETCHCOMMENT(E125) -> 04A6685 | G125: 1 | H125: =FETCHCOMMENT(G125) -> Stanton Constructability Services ,LLC | I125: 4
A126: MEGAN STROMBERG CONSTULTING | C126: 80000 | D126: F | E126: 1 | F126: =FETCHCOMMENT(E126) -> 04A6823 | G126: 1 | H126: =FETCHCOMMENT(G126) -> BROWN & CALDWELL | I126: 4
A127: MOUNTAINVIEW BIOLOGICAL | C127: 594150 | D127: F | E127: 1 | F127: =FETCHCOMMENT(E127) -> 08A3623 | G127: 1 | H127: =FETCHCOMMENT(G127) -> DUDEK | I127: 8
A128: PRR INC | C128: 228001.88 | D128: F | E128: 2 | F128: =FETCHCOMMENT(E128) -> 11A3767 03A3681 | G128: 2 | H128: =FETCHCOMMENT(G128) -> KIMLEY-HORN AND ASSOCIATES ICF Jones & Stokes, Inc. | I128: 3,11
A129: SAYLOR CONSULTING GROUP | C129: 2445000 | D129: F | E129: 2 | F129: =FETCHCOMMENT(E129) -> 04A6823 59A1268 | G129: 2 | H129: =FETCHCOMMENT(G129) -> BROWN & CALDWELL Gannett Fleming, Inc. | I129: 4,59
A130: SWAIM BIOLOGICAL CONSULTING | C130: 198050 | D130: F | E130: 1 | F130: =FETCHCOMMENT(E130) -> 08A3623 | G130: 1 | H130: =FETCHCOMMENT(G130) -> DUDEK | I130: 8
A131: TRI COUNTY DRILLING INC | C131: 240000 | D131: F | E131: 1 | F131: =FETCHCOMMENT(E131) -> 59A1270 | G131: 1 | H131: =FETCHCOMMENT(G131) -> FUGRO | I131: 59
A132: WAGNER ENGINEERING & SURVEY | C132: 110000 | D132: F | E132: 1 | F132: =FETCHCOMMENT(E132) -> 07A5738 | G132: 1 | H132: =FETCHCOMMENT(G132) -> STANTEC CONSULTING SERVICES INC | I132: 7
A133: WATEARTH | C133: 650001.93 | D133: F | E133: 2 | F133: =FETCHCOMMENT(E133) -> 04A6813 03A3681 | G133: 2 | H133: =FETCHCOMMENT(G133) -> HDR Engineering, Inc. ICF Jones & Stokes, Inc. | I133: 3,4
A134: Z & K CONSULTANTS INC | C134: 739296.3 | D134: F | E134: 1 | F134: =FETCHCOMMENT(E134) -> 06A2971 | G134: 1 | I134: 6
F135: =FETCHCOMMENT(E135) -> 
F136: =FETCHCOMMENT(E136) -> 
A140: Prime Name | C140: No of Contracts | D140: Contract # | E140: Prime Name | F140: No of Contracts | G140: Contract # | H140: Prime Name | I140: No of Contracts | J140: Contract #
A141: ATLAS TECHNICAL CONSULTANTS INC | C141: 2 | D141: =FETCHCOMMENT(C141) -> 06A2969 08A3615 | E141: GANNETT FLEMING, INC. | F141: 1 | G141: =FETCHCOMMENT(F141) -> 59A1268 | H141: NV5 INC | I141: 4 | J141: =FETCHCOMMENT(I141) -> 09A0964 06A2975 07A5729 09A0983
A142: ARCADIS USA INC | C142: 1 | D142: =FETCHCOMMENT(C142) -> 07A5677 | E142: HDR ENGINEERING, INC. | F142: 1 | G142: =FETCHCOMMENT(F142) -> 04A6813 | H142: PARSONS TRANSPORTATION GROUP, INC. | I142: 2 | J142: =FETCHCOMMENT(I142) -> 09A0976 04A6800
A143: BROWN AND CALDWELL | C143: 1 | D143: =FETCHCOMMENT(C143) -> 04A6823 | E143: HNTB CORPORATION | F143: 1 | G143: =FETCHCOMMENT(F143) -> 59A1285 | H143: STANTEC CONSULTING SERVICES INC | I143: 1 | J143: =FETCHCOMMENT(I143) -> 07A5738
A144: BUREAU VERITAS NORTH AMERICA INC | C144: 2 | D144: =FETCHCOMMENT(C144) -> 59A1258 08A3604 | E144: ICF JONES & STOKES, INC. | F144: 1 | G144: =FETCHCOMMENT(F144) -> 03A3681 | H144: STANTON CONSTRUCTABILITY SERVICES ,LLC | I144: 1 | J144: =FETCHCOMMENT(I144) -> 04A6685
A145: CHAUDHARY & ASSOCIATES INC | C145: 1 | D145: =FETCHCOMMENT(C145) -> 04A6890 | E145: KIMLEY-HORN AND ASSOCIATES INC | F145: 1 | G145: =FETCHCOMMENT(F145) -> 11A3767 | H145: TRANSYSTEMS CORPORATION | I145: 2 | J145: =FETCHCOMMENT(I145) -> 08A3639 07A5782
A146: DEAN RYAN CONSULTANTS & DESIGNERS, INC. | C146: 1 | D146: =FETCHCOMMENT(C146) -> 07A5768 | E146: KLEINFELDER CONSTRUCTION SERVICES INC | F146: 1 | G146: =FETCHCOMMENT(F146) -> 11A3661 | H146: WSP USA, INC. | I146: 1 | J146: =FETCHCOMMENT(I146) -> 04A6909
A147: DUDEK | C147: 1 | D147: =FETCHCOMMENT(C147) -> 08A3623 | E147: MICHAEL BAKER INTERNATIONAL, INC. | F147: 1 | G147: =FETCHCOMMENT(F147) -> 09A0976 07A5766 | H147: VALUE MANAGEMENT STRATEGIES | I147: 1 | J147: =FETCHCOMMENT(I147) -> 53A0282
A148: FUGRO | C148: 1 | D148: =FETCHCOMMENT(C148) -> 59A1270 | E148: MS ENGINEERING INC | F148: 1
A150: To see names of prime contractors/contract numbers, place your cursor on comment tab (red triangle).
A151: Caltrans DBE Reports: http://www.dot.ca.gov/hq/bep/reports.htm
